bitfinex-derivatives/quotes_BTCF0:USTF0_20241223
["timestamp","ask_amount","ask_price","bid_price","bid_amount"]
[1734958894577,0.006,96329.0,96328.0,0.052965]
[1734958895090,0.004,96329.0,96328.0,0.052965]
[1734958895290,0.006,96329.0,96328.0,0.052965]
[1734958895989,0.006,96329.0,96328.0,0.051965]
[1734958896290,0.006,96329.0,96328.0,0.052965]
[1734958897792,0.002,96329.0,96328.0,0.051965]
[1734958897998,0.006,96329.0,96328.0,0.052965]
[1734958899788,0.006,96329.0,96328.0,0.001]
[1734958900695,0.057965,96329.0,96328.0,0.001]
[1734958900893,0.006,96329.0,96319.0,0.24701792]
[1734958901093,0.412768,96323.0,96319.0,0.24701792]
[1734958901299,0.3608,96323.0,96319.0,0.24701792]
[1734958901604,0.051974,96312.0,96311.0,0.15151792]
[1734958902409,0.051976,96308.0,96307.0,0.00155745]
[1734958903502,0.34904,96308.0,96289.0,0.3608]
[1734958903703,0.3608,96296.0,96283.0,0.051989]
[1734958905309,0.3608,96296.0,96283.0,0.003]
[1734958905607,0.3608,96296.0,96284.0,0.051989]
[1734958906207,0.3608,96296.0,96283.0,0.003]
[1734958906399,0.3608,96296.0,96288.0,0.051987]
[1734958907504,0.3608,96296.0,96288.0,0.054987]
[1734958908411,0.3608,96296.0,96288.0,0.056987]
[1734958908917,0.3608,96296.0,96289.0,0.051986]
[1734958909298,0.3608,96296.0,96290.0,0.051986]
[1734958909609,0.3608,96296.0,96294.0,0.051983]
[1734958909911,0.34904,96308.0,96295.0,0.126]
[1734958910514,0.34904,96308.0,96300.0,0.05198]
[1734958911206,0.35004,96308.0,96295.0,0.126]
[1734958911413,0.35004,96308.0,96295.0,0.127]
[1734958911707,0.35004,96308.0,96300.0,0.05198]
[1734958912508,0.35004,96308.0,96296.0,0.0616]
[1734958912704,0.35004,96308.0,96295.0,0.127]
[1734958913307,0.34904,96308.0,96295.0,0.127]
[1734958913513,0.35204,96308.0,96295.0,0.127]
[1734958914212,0.35204,96308.0,96295.0,0.177983]
[1734958914213,0.402016,96308.0,96295.0,0.177983]
[1734958915115,0.402016,96308.0,96295.0,0.178983]
[1734958916113,0.412778,96305.0,96295.0,0.0635]
[1734958917716,0.051979,96303.0,96295.0,0.0635]
[1734958918814,0.01560001,96302.0,96295.0,0.0635]
[1734958919510,0.37640001,96302.0,96295.0,0.0635]
[1734958920014,0.051982,96298.0,96295.0,0.0635]
[1734958920219,0.051982,96298.0,96295.0,0.001]
[1734958921314,0.052982,96298.0,96295.0,0.001]
[1734958923622,0.051982,96297.0,96295.0,0.001]
[1734958925025,0.001,96298.0,96295.0,0.001]
[1734958925229,0.051982,96296.0,96295.0,0.001]
[1734958926411,0.05199,96282.0,96268.0,0.412797]
[1734958926824,0.08288961,96280.0,96268.0,0.3608]
[1734958927025,0.08288961,96280.0,96270.0,0.051996]
[1734958927215,0.08288961,96280.0,96273.0,0.051995]
[1734958928729,0.08288961,96280.0,96273.0,0.053995]
[1734958929119,0.3608,96275.0,96273.0,0.053995]
[1734958929726,0.3608,96275.0,96273.0,0.005]
[1734958934536,0.3608,96275.0,96273.0,0.056995]
[1734958935620,0.3608,96275.0,96273.0,0.005]
[1734958937827,0.37640001,96275.0,96273.0,0.005]
[1734958938030,0.3608,96275.0,96273.0,0.005]
[1734958938723,0.37640001,96275.0,96273.0,0.005]
[1734958939424,0.3608,96275.0,96273.0,0.005]
[1734958939630,0.01560001,96274.0,96273.0,0.005]
[1734958944829,0.3608,96275.0,96273.0,0.005]
[1734958945138,0.08288961,96283.0,96275.0,0.051994]
[1734958945335,0.01560001,96282.0,96275.0,0.051994]
[1734958946947,0.01560001,96282.0,96280.0,0.051991]
[1734958947245,0.01560001,96282.0,96281.0,0.1225]
[1734958948034,0.01560001,96285.0,96281.0,0.1225]
[1734958948035,0.34924,96288.0,96281.0,0.1225]
[1734958948237,0.36484001,96288.0,96282.0,0.0603]
[1734958948940,0.41682701,96288.0,96282.0,0.0603]
[1734958949138,0.36484001,96288.0,96282.0,0.0603]
[1734958949432,0.36584001,96288.0,96282.0,0.0603]
[1734958951840,0.35024,96288.0,96286.0,0.051988]
[1734958952439,0.25494,96288.0,96286.0,0.051988]
[1734958952634,0.15964,96288.0,96286.0,0.051988]
[1734958954033,0.16164,96288.0,96286.0,0.051988]
[1734958956631,0.16164,96288.0,96281.0,0.0638]
[1734958957939,0.01560001,96287.0,96281.0,0.0638]
[1734958958239,0.06758701,96287.0,96281.0,0.0638]
[1734958958440,0.412789,96285.0,96281.0,0.0638]
[1734958958645,0.051989,96284.0,96270.0,0.0606]
[1734958958842,0.051989,96284.0,96270.0,0.119]
[1734958959039,0.13487961,96282.0,96281.0,0.001]
[1734958959238,0.3608,96282.0,96267.0,0.3094756]
[1734958959548,0.3608,96268.0,96267.0,0.3094756]
[1734958960244,0.3608,96268.0,96253.0,0.1793]
[1734958960446,0.051999,96266.0,96253.0,0.1793]
[1734958961844,0.3618,96268.0,96253.0,0.1793]
[1734958962148,0.003,96266.0,96258.0,0.052003]
[1734958962448,0.003,96266.0,96253.0,0.1793]
[1734958962449,0.003,96266.0,96260.0,0.052002]
[1734958962838,0.054999,96266.0,96254.0,0.052005]
[1734958963043,0.051999,96265.0,96253.0,0.1793]
[1734958963347,0.051999,96265.0,96255.0,0.052004]
[1734958963545,0.051999,96265.0,96253.0,0.42680238]
[1734958963742,0.051999,96265.0,96259.0,0.3608]
[1734958963942,0.004,96266.0,96259.0,0.412802]
[1734958964144,0.003,96265.0,96259.0,0.414202]
[1734958964339,0.003,96265.0,96259.0,0.3622]
[1734958964540,0.003,96265.0,96260.0,0.052002]
[1734958965247,0.052999,96266.0,96260.0,0.052002]
[1734958965448,0.004,96265.0,96255.0,0.24750238]
[1734958965652,0.3608,96264.0,96255.0,0.24750238]
[1734958966756,0.3608,96264.0,96253.0,0.1793]
[1734958966955,0.3618,96264.0,96253.0,0.1793]
[1734958967443,0.3648,96264.0,96253.0,0.1793]
[1734958967646,0.3648,96264.0,96253.0,0.0584]
[1734958967959,0.4228,96264.0,96253.0,0.0584]
[1734958969145,0.052005,96255.0,96253.0,0.0584]
[1734958970057,0.052005,96255.0,96253.0,0.0604]
[1734958970247,0.052005,96255.0,96253.0,0.002]
[1734958971652,0.052005,96254.0,96253.0,0.002]
[1734958972450,0.052005,96254.0,96253.0,0.001]
[1734958972750,0.052005,96254.0,96253.0,0.002]
[1734958972955,0.052005,96254.0,96253.0,0.001]
[1734958973155,0.052005,96254.0,96253.0,0.002]
[1734958973349,0.052005,96254.0,96253.0,0.001]
[1734958973551,0.052005,96254.0,96253.0,0.002]
[1734958978454,0.412805,96254.0,96253.0,0.002]
[1734958981273,0.473105,96254.0,96253.0,0.002]
[1734958981455,0.473105,96254.0,96227.0,0.4211]
[1734958981456,0.052012,96241.0,96227.0,0.4211]
[1734958981662,0.052019,96229.0,96227.0,0.0603]
[1734958982759,0.052019,96229.0,96227.0,0.0693]
[1734958982964,0.052019,96229.0,96227.0,0.0753]
[1734958983161,0.052019,96229.0,96227.0,0.0663]
[1734958983357,0.052019,96229.0,96227.0,0.0753]
[1734958983358,0.053019,96229.0,96227.0,0.0753]
[1734958984760,0.053019,96229.0,96227.0,0.015]
[1734958985158,0.053019,96229.0,96227.0,0.009]
[1734958985365,0.054019,96229.0,96227.0,0.015]
[1734958987962,0.0622,96228.0,96227.0,0.015]
[1734958988762,0.0622,96228.0,96227.0,0.011]
[1734958989066,0.0622,96228.0,96227.0,0.005]
[1734958989364,0.052027,96214.0,96213.0,0.059]
[1734958989566,0.052032,96204.0,96203.0,0.3608]
[1734958989871,0.3608,96214.0,96203.0,0.3608]
[1734958990060,0.3608,96214.0,96205.0,0.052032]
[1734958990260,0.3608,96214.0,96203.0,0.3608]
[1734958990474,0.3608,96214.0,96207.0,0.05203]
[1734958991366,0.052027,96214.0,96207.0,0.05203]
[1734958991667,0.052022,96223.0,96213.0,0.3608]
[1734958991867,0.052022,96223.0,96217.0,0.052025]
[1734958992062,0.052022,96223.0,96219.0,0.052024]
[1734958992259,0.3608,96230.0,96222.0,0.052022]
[1734958992567,0.3608,96230.0,96220.0,0.0587]
[1734958992770,0.0015593,96234.0,96227.0,0.05202]
[1734958992968,0.052016,96233.0,96231.0,0.3608]
[1734958995570,0.054016,96233.0,96231.0,0.3608]
[1734958995957,0.052016,96233.0,96231.0,0.3608]
[1734958996161,0.054016,96233.0,96231.0,0.3608]
[1734958998771,0.052016,96233.0,96231.0,0.3608]
[1734958998956,0.054016,96233.0,96231.0,0.3608]
[1734958999157,0.054016,96233.0,96225.0,0.18563352]
[1734958999368,0.052018,96230.0,96225.0,0.18563352]
[1734958999967,0.05202,96227.0,96225.0,0.18563352]
[1734959000370,0.002,96233.0,96225.0,0.18563352]
[1734959000873,0.002,96233.0,96225.0,0.23765352]
[1734959001068,0.002,96233.0,96225.0,0.23865352]
[1734959001273,0.002,96233.0,96226.0,0.05202]
[1734959001571,0.002,96233.0,96227.0,0.05202]
[1734959001868,0.002,96233.0,96225.0,0.001]
[1734959001869,0.002,96233.0,96228.0,0.052019]
[1734959002172,0.052015,96236.0,96228.0,0.052019]
[1734959002470,0.052015,96236.0,96229.0,0.052018]
[1734959002671,0.001,96233.0,96230.0,0.052018]
[1734959002863,0.005,96233.0,96232.0,0.052017]
[1734959003768,0.001,96233.0,96232.0,0.052017]
[1734959004170,0.006,96236.0,96223.0,0.052022]
[1734959004563,0.006,96236.0,96222.0,0.3608]
[1734959004770,0.006,96236.0,96233.0,0.052016]
[1734959004967,0.005,96236.0,96233.0,0.052016]
[1734959005166,0.005,96236.0,96234.0,0.052016]
[1734959005365,0.052014,96238.0,96234.0,0.052016]
[1734959005770,0.052014,96238.0,96235.0,0.052015]
[1734959005969,0.007,96236.0,96235.0,0.052015]
[1734959006678,0.007,96238.0,96235.0,0.052015]
[1734959007365,0.01,96238.0,96234.0,0.001]
[1734959008075,0.003,96238.0,96232.0,0.3608]
[1734959008273,0.008,96236.0,96235.0,0.001]
[1734959010377,0.003,96236.0,96234.0,0.001]
[1734959011372,0.003,96236.0,96235.0,0.052015]
[1734959011579,0.003,96236.0,96235.0,0.112415]
[1734959011980,0.011,96236.0,96235.0,0.113415]
[1734959012479,0.011,96236.0,96235.0,0.112415]
[1734959012480,0.003,96236.0,96235.0,0.112415]
[1734959012779,0.012,96236.0,96235.0,0.113415]
[1734959012984,0.003,96236.0,96235.0,0.112415]
[1734959013182,0.012,96236.0,96235.0,0.113415]
[1734959019584,0.012,96236.0,96235.0,0.053015]
[1734959020880,0.15563854,96246.0,96245.0,0.05201]
[1734959021186,0.00155892,96253.0,96245.0,0.05201]
[1734959021187,0.15719746,96253.0,96252.0,0.052006]
[1734959022577,0.15563854,96253.0,96252.0,0.052006]
[1734959022777,0.15563854,96262.0,96261.0,0.052001]
[1734959024271,0.051993,96276.0,96274.0,0.051994]
[1734959025589,0.051993,96276.0,96274.0,0.053994]
[1734959025886,0.01560001,96279.0,96278.0,0.051992]
[1734959026682,0.00155838,96282.0,96281.0,0.051991]
[1734959026888,0.00155838,96282.0,96281.0,0.412791]
[1734959028178,0.00155838,96282.0,96281.0,0.416791]
[1734959028381,0.00255838,96282.0,96281.0,0.423791]
[1734959031282,0.001,96282.0,96281.0,0.423791]
[1734959031492,0.34936,96291.0,96290.0,0.051986]
[1734959031683,0.34936,96291.0,96290.0,0.412786]
[1734959032685,0.06757201,96316.0,96290.0,0.3628]
[1734959032991,0.01560001,96316.0,96309.0,0.051975]
[1734959033193,0.34924,96323.0,96302.0,0.3608]
[1734959033493,0.34924,96323.0,96322.0,0.051968]
[1734959034174,0.15563854,96335.0,96334.0,0.051962]
[1734959034982,0.051965,96328.0,96324.0,0.051967]
[1734959035177,0.3608,96334.0,96328.0,0.051965]
[1734959035379,0.3608,96334.0,96322.0,0.006]
[1734959035686,0.20219738,96341.0,96322.0,0.006]
[1734959035687,0.01560001,96341.0,96334.0,0.001]
[1734959036090,0.3608,96335.0,96334.0,0.001]
[1734959037787,0.37640001,96335.0,96331.0,0.051963]
[1734959038093,0.37640001,96335.0,96332.0,0.051963]
[1734959038490,0.3608,96335.0,96334.0,0.001]
[1734959038882,0.37640001,96335.0,96334.0,0.001]
[1734959039088,0.37640001,96335.0,96332.0,0.051963]
[1734959039287,0.37640001,96335.0,96332.0,0.053963]
[1734959039898,0.37640001,96335.0,96332.0,0.051963]
[1734959040091,0.37640001,96335.0,96334.0,0.002]
[1734959041387,0.37640001,96335.0,96334.0,0.005]
[1734959041797,0.37795772,96344.0,96339.0,0.051959]
[1734959041989,0.37795772,96344.0,96343.0,0.051957]
[1734959042696,0.37795772,96344.0,96337.0,0.05196]
[1734959042895,0.051962,96333.0,96332.0,0.002]
[1734959043092,0.051965,96329.0,96319.0,0.05197]
[1734959043400,0.051965,96329.0,96321.0,0.051969]
[1734959043588,0.051965,96329.0,96309.0,0.3608]
[1734959043785,0.3608,96325.0,96318.0,0.051971]
[1734959043988,0.3608,96325.0,96318.0,0.05197]
[1734959044200,0.412767,96325.0,96312.0,0.051974]
[1734959044397,0.412767,96325.0,96309.0,0.3608]
[1734959044695,0.412767,96325.0,96313.0,0.051973]
[1734959044897,0.412767,96325.0,96309.0,0.3608]
[1734959044898,0.3608,96325.0,96309.0,0.3608]
[1734959045097,0.3638,96325.0,96315.0,0.051972]
[1734959045401,0.3638,96325.0,96318.0,0.05197]
[1734959045584,0.3608,96325.0,96318.0,0.05197]
[1734959045898,0.3628,96325.0,96318.0,0.05197]
[1734959047091,0.051968,96323.0,96313.0,0.051973]
[1734959047291,0.3628,96325.0,96309.0,0.3608]
[1734959047499,0.3628,96325.0,96315.0,0.051972]
[1734959047797,0.414767,96325.0,96315.0,0.051972]
[1734959047993,0.419767,96325.0,96315.0,0.051972]
[1734959048489,0.414767,96325.0,96315.0,0.051972]
[1734959048801,0.413767,96325.0,96315.0,0.051972]
[1734959048997,0.051968,96324.0,96315.0,0.051972]
[1734959049299,0.3638,96325.0,96315.0,0.051972]
[1734959049494,0.051971,96318.0,96310.0,0.051975]
[1734959049698,0.3608,96313.0,96300.0,0.18613595]
[1734959050003,0.3608,96303.0,96300.0,0.18613595]
[1734959050996,0.3608,96303.0,96296.0,0.051982]
[1734959051396,0.3658,96303.0,96297.0,0.051982]
[1734959051613,0.3678,96303.0,96297.0,0.051982]
[1734959052199,0.417779,96303.0,96290.0,0.3608]
[1734959052400,0.419779,96303.0,96290.0,0.3608]
[1734959052798,0.051985,96291.0,96289.0,0.18613595]
[1734959053702,0.3608,96294.0,96284.0,0.18613595]
[1734959053999,0.412788,96286.0,96284.0,0.18613595]
[1734959055207,0.01560001,96285.0,96284.0,0.18613595]
[1734959055399,0.01560001,96285.0,96262.0,0.052001]
[1734959055400,0.051994,96274.0,96270.0,0.54849379]
[1734959056004,0.13488061,96280.0,96270.0,0.54849379]
[1734959056202,0.051991,96280.0,96270.0,0.54849379]
[1734959056409,0.01560001,96285.0,96284.0,0.001]
[1734959056611,0.06758801,96285.0,96284.0,0.001]
[1734959057112,0.06758801,96285.0,96270.0,0.54849379]
[1734959057113,0.051994,96276.0,96270.0,0.36435784]
[1734959057616,0.051994,96276.0,96270.0,0.36235784]
[1734959057912,0.01560001,96275.0,96270.0,0.36335784]
[1734959058505,0.01560001,96274.0,96270.0,0.36235784]
[1734959058710,0.01560001,96274.0,96270.0,0.36335784]
[1734959059019,0.3608,96286.0,96283.0,0.051989]
[1734959059209,0.3608,96286.0,96284.0,0.059]
[1734959059513,0.3608,96286.0,96270.0,0.44724745]
[1734959059514,0.3608,96286.0,96270.0,0.36435784]
[1734959059711,0.051996,96272.0,96270.0,0.36435784]
[1734959060208,0.051996,96272.0,96270.0,0.36335784]
[1734959060410,0.051996,96272.0,96270.0,0.36435784]
[1734959061407,0.051992,96279.0,96271.0,0.051996]
[1734959061611,0.051992,96279.0,96278.0,0.3608]
[1734959063207,0.051992,96279.0,96270.0,0.36435784]
[1734959063409,0.051996,96271.0,96270.0,0.36235784]
[1734959064807,0.056996,96271.0,96270.0,0.36335784]
[1734959065317,0.059996,96271.0,96270.0,0.36335784]
[1734959066331,0.059996,96271.0,96270.0,0.00255784]
[1734959066928,0.056996,96271.0,96270.0,0.00255784]
[1734959067128,0.059996,96271.0,96270.0,0.00255784]
[1734959067430,0.059996,96271.0,96270.0,0.001]
[1734959067733,0.056996,96271.0,96270.0,0.001]
[1734959067932,0.052003,96258.0,96257.0,0.18613595]
[1734959068427,0.052007,96251.0,96250.0,0.42176]
[1734959068629,0.05201,96245.0,96244.0,0.3608]
[1734959068829,0.05201,96245.0,96241.0,0.18613595]
[1734959069034,0.052012,96242.0,96241.0,0.18613595]
[1734959070224,0.057012,96242.0,96241.0,0.18613595]
[1734959070534,0.052021,96225.0,96224.0,0.18613595]
[1734959070730,0.412821,96225.0,96224.0,0.18613595]
[1734959071530,0.052025,96217.0,96216.0,0.3608]
[1734959072624,0.052032,96206.0,96204.0,0.00155927]
[1734959073238,0.3608,96217.0,96204.0,0.00155927]
[1734959073433,0.052029,96210.0,96204.0,0.00155927]
[1734959073629,0.05203,96208.0,96204.0,0.00155927]
[1734959073939,0.052026,96216.0,96204.0,0.00155927]
[1734959074236,0.001,96206.0,96204.0,0.00355927]
[1734959074529,0.052032,96205.0,96204.0,0.00355927]
[1734959074735,0.052032,96205.0,96204.0,0.00155927]
[1734959074936,0.052032,96205.0,96204.0,0.00355927]
[1734959075937,0.052032,96205.0,96204.0,0.00155927]
[1734959077938,0.06763201,96205.0,96204.0,0.00155927]
[1734959081243,0.052034,96201.0,96200.0,0.1]
[1734959081541,0.052034,96201.0,96177.0,0.24603595]
[1734959081542,0.3608,96201.0,96177.0,0.18613595]
[1734959081754,0.052046,96178.0,96177.0,0.18613595]
[1734959082132,0.052046,96178.0,96169.0,0.0559]
[1734959082133,0.052049,96172.0,96169.0,0.0559]
[1734959082738,0.05205,96171.0,96169.0,0.0559]
[1734959083838,0.05205,96171.0,96169.0,0.0629]
[1734959084048,0.05305,96171.0,96169.0,0.0629]
[1734959084236,0.3608,96177.0,96169.0,0.0629]
[1734959084543,0.3608,96177.0,96169.0,0.0669]
[1734959085046,0.05205,96171.0,96169.0,0.0629]
[1734959085340,0.412841,96187.0,96169.0,0.117951]
[1734959085545,0.3608,96187.0,96175.0,0.3608]
[1734959085742,0.052045,96180.0,96175.0,0.3608]
[1734959085932,0.052046,96179.0,96175.0,0.3608]
[1734959086137,0.052046,96178.0,96169.0,0.0569]
[1734959086347,0.052048,96176.0,96173.0,0.3608]
[1734959086540,0.052048,96175.0,96173.0,0.3608]
[1734959086755,0.3608,96187.0,96169.0,0.0569]
[1734959086756,0.05205,96171.0,96169.0,0.0569]
[1734959087449,0.05205,96171.0,96169.0,0.0559]
[1734959088239,0.05205,96171.0,96169.0,0.0569]
[1734959088540,0.3608,96170.0,96169.0,0.001]
[1734959088742,0.5353,96170.0,96169.0,0.001]
[1734959089242,0.5353,96170.0,96169.0,0.002]
[1734959090339,0.5353,96170.0,96169.0,0.001]
[1734959090542,0.5353,96170.0,96169.0,0.002]
[1734959090945,0.3608,96170.0,96169.0,0.002]
[1734959091446,0.34952,96176.0,96169.0,0.002]
[1734959092747,0.34952,96176.0,96169.0,0.001]
[1734959093047,0.34952,96176.0,96169.0,0.002]
[1734959094445,0.13086414,96176.0,96169.0,0.002]
[1734959095453,0.13086414,96176.0,96169.0,0.003]
[1734959095753,0.13086414,96176.0,96169.0,0.007]
[1734959095947,0.13086414,96176.0,96170.0,0.05205]
[1734959097649,0.05205,96171.0,96169.0,0.005]
[1734959097955,0.05205,96171.0,96170.0,0.003]
[1734959098554,0.06765001,96171.0,96170.0,0.008]
[1734959098947,0.06765001,96171.0,96170.0,0.003]
[1734959099270,0.052051,96170.0,96168.0,0.11713594]
[1734959099553,0.052051,96170.0,96160.0,0.0597]
[1734959102047,0.052055,96161.0,96160.0,0.002]
[1734959102357,0.412855,96161.0,96159.0,0.24818127]
[1734959102853,0.412855,96161.0,96160.0,0.003]
[1734959103046,0.3608,96161.0,96160.0,0.003]
[1734959103351,0.3608,96171.0,96159.0,0.24918127]
[1734959103557,0.112146,96179.0,96167.0,0.052052]
[1734959104248,0.112146,96179.0,96166.0,0.34085199]
[1734959104550,0.052047,96177.0,96167.0,0.052052]
[1734959104744,0.052047,96177.0,96167.0,0.054052]
[1734959105453,0.052047,96177.0,96168.0,0.052052]
[1734959106152,0.37640001,96181.0,96174.0,0.052048]
[1734959106455,0.01560001,96181.0,96174.0,0.412848]
[1734959107256,0.052046,96179.0,96174.0,0.414848]
[1734959107958,0.13986414,96176.0,96174.0,0.413848]
[1734959108554,0.01,96176.0,96174.0,0.413848]
[1734959108759,0.01,96176.0,96175.0,0.0616]
[1734959109057,0.004,96176.0,96175.0,0.0616]
[1734959109353,0.09282018,96192.0,96191.0,0.052039]
[1734959109554,0.09282018,96192.0,96191.0,0.412839]
[1734959110161,0.09282018,96195.0,96194.0,0.052038]
[1734959111150,0.09282018,96195.0,96191.0,0.3608]
[1734959111347,0.004,96192.0,96191.0,0.3608]
[1734959112758,0.006,96195.0,96191.0,0.3608]
[1734959113259,0.001,96192.0,96191.0,0.412839]
[1734959113958,0.002,96192.0,96191.0,0.412839]
[1734959114858,0.002,96192.0,96191.0,0.415839]
[1734959115751,0.09282018,96204.0,96191.0,0.415839]
[1734959115752,0.09282018,96204.0,96191.0,0.3638]
[1734959115953,0.09282018,96204.0,96203.0,0.412833]
[1734959116456,0.05203,96209.0,96204.0,0.052032]
[1734959116650,0.05203,96209.0,96207.0,0.05203]
[1734959116846,0.10842019,96213.0,96204.0,0.0575]
[1734959117048,0.10842019,96213.0,96212.0,0.412828]
[1734959117049,0.09282018,96213.0,96212.0,0.412828]
[1734959118254,0.00155944,96215.0,96214.0,0.052027]
[1734959118661,0.01715945,96215.0,96214.0,0.052027]
[1734959119145,0.00155944,96215.0,96212.0,0.34082699]
[1734959119346,0.001,96213.0,96212.0,0.39885499]
[1734959119551,0.001,96213.0,96212.0,0.40185499]
[1734959120154,0.001,96213.0,96212.0,0.39885499]
[1734959120355,0.001,96213.0,96212.0,0.40085499]
[1734959120655,0.00155944,96215.0,96214.0,0.057027]
[1734959121961,0.00155944,96215.0,96214.0,0.052027]
[1734959122559,0.00155944,96215.0,96214.0,0.054027]
[1734959122746,0.00155944,96215.0,96214.0,0.059027]
[1734959123259,0.00255944,96215.0,96214.0,0.058027]
[1734959123458,0.00255944,96215.0,96214.0,0.060027]
[1734959124051,0.00255944,96215.0,96214.0,0.058027]
[1734959124256,0.00255944,96215.0,96214.0,0.008]
[1734959124455,0.052034,96201.0,96194.0,0.3608]
[1734959124655,0.110335,96200.0,96194.0,0.3608]
[1734959124854,0.052037,96196.0,96194.0,0.3608]
[1734959125053,0.0583,96200.0,96194.0,0.3608]
[1734959125365,0.0583,96200.0,96195.0,0.052037]
[1734959125857,0.0583,96200.0,96198.0,0.052035]
[1734959126059,0.0583,96200.0,96194.0,0.3608]
[1734959126454,0.0583,96200.0,96194.0,0.412837]
[1734959126760,0.0583,96200.0,96195.0,0.003]
[1734959127158,0.0583,96200.0,96195.0,0.055037]
[1734959128160,0.0583,96200.0,96195.0,0.052037]
[1734959128861,0.0593,96200.0,96195.0,0.052037]
[1734959129270,0.0583,96200.0,96195.0,0.052037]
[1734959129461,0.0613,96200.0,96195.0,0.052037]
[1734959130160,0.0603,96200.0,96195.0,0.052037]
[1734959130361,0.052035,96199.0,96194.0,0.3608]
[1734959130958,0.052037,96195.0,96194.0,0.3608]
[1734959131358,0.052037,96195.0,96184.0,0.052043]
[1734959131359,0.052039,96192.0,96184.0,0.052043]
[1734959131662,0.05204,96190.0,96184.0,0.052043]
[1734959132547,0.0607,96194.0,96183.0,0.00155939]
[1734959132748,0.0607,96194.0,96187.0,0.052041]
[1734959132965,0.052039,96193.0,96187.0,0.052041]
[1734959133453,0.052039,96191.0,96183.0,0.00155939]
[1734959133648,0.003,96190.0,96183.0,0.00155939]
[1734959134161,0.003,96190.0,96189.0,0.05204]
[1734959134366,0.09282018,96198.0,96191.0,0.052039]
[1734959134552,0.114134,96202.0,96191.0,0.052039]
[1734959134553,0.12405208,96196.0,96191.0,0.052039]
[1734959135664,0.09328953,96193.0,96191.0,0.052039]
[1734959136857,0.09328953,96192.0,96191.0,0.052039]
[1734959137457,0.09328953,96192.0,96191.0,0.053039]
[1734959137963,0.12405208,96196.0,96195.0,0.052037]
[1734959138162,0.12405208,96196.0,96195.0,0.412837]
[1734959139564,0.09337306,96200.0,96195.0,0.3608]
[1734959139759,0.09337306,96200.0,96199.0,0.052035]
[1734959139961,0.09337306,96200.0,96199.0,0.412835]
[1734959141061,0.09337306,96200.0,96199.0,0.413835]
[1734959141258,0.09337306,96213.0,96212.0,0.052028]
[1734959141460,0.09337306,96213.0,96212.0,0.412828]
[1734959142466,0.01560001,96217.0,96216.0,0.052026]
[1734959143562,0.09337306,96220.0,96218.0,0.052025]
[1734959143867,0.09337306,96220.0,96219.0,0.4198]
[1734959144069,0.09337306,96220.0,96219.0,0.477]
[1734959144862,0.09737306,96220.0,96219.0,0.477]
[1734959145065,0.09737306,96220.0,96219.0,0.5362]
[1734959145262,0.004,96220.0,96219.0,0.5362]
[1734959145466,0.09337306,96231.0,96219.0,0.5362]
[1734959145671,0.09337306,96231.0,96230.0,0.412818]
[1734959146965,0.006,96231.0,96230.0,0.413818]
[1734959147463,0.009,96231.0,96230.0,0.413818]
[1734959153073,0.009,96231.0,96230.0,0.053018]
[1734959153770,0.009,96231.0,96230.0,0.413818]
[1734959157662,0.01560001,96250.0,96241.0,0.052012]
[1734959157867,0.00155877,96251.0,96246.0,0.3608]
[1734959158075,0.00155877,96251.0,96249.0,0.052008]
[1734959158968,0.01560001,96250.0,96249.0,0.052008]
[1734959159369,0.00155877,96251.0,96249.0,0.052008]
[1734959159965,0.00155877,96251.0,96249.0,0.057008]
[1734959160163,0.00155877,96251.0,96249.0,0.059008]
[1734959163469,0.00155877,96251.0,96249.0,0.058008]
[1734959164171,0.00155877,96251.0,96249.0,0.059008]
[1734959165476,0.10897307,96260.0,96256.0,0.052004]
[1734959165678,0.10897307,96260.0,96256.0,0.412804]
[1734959165982,0.10897307,96260.0,96259.0,0.052002]
[1734959166479,0.01560001,96260.0,96259.0,0.052002]
[1734959166980,0.17985208,96265.0,96264.0,0.052]
[1734959167175,0.17985208,96265.0,96264.0,0.4128]
[1734959167481,0.12405208,96265.0,96264.0,0.4128]
[1734959167880,0.01560001,96270.0,96264.0,0.4128]
[1734959167881,0.09313825,96267.0,96265.0,0.051999]
[1734959169680,0.004,96267.0,96265.0,0.051999]
[1734959170385,0.007,96267.0,96265.0,0.051999]
[1734959173076,0.007,96267.0,96247.0,0.24836964]
[1734959173077,0.3608,96266.0,96249.0,0.052008]
[1734959173277,0.08288961,96260.0,96258.0,0.052003]
[1734959173580,0.0574,96259.0,96258.0,0.052003]
[1734959173782,0.3608,96266.0,96258.0,0.052003]
[1734959173977,0.3608,96266.0,96265.0,0.051999]
[1734959174292,0.007,96267.0,96265.0,0.051999]
[1734959174293,0.004,96267.0,96265.0,0.051999]
[1734959175075,0.003,96266.0,96265.0,0.051999]
[1734959176383,0.007,96266.0,96265.0,0.051999]
[1734959176783,0.004,96266.0,96265.0,0.051999]
[1734959177893,0.007,96266.0,96265.0,0.051999]
[1734959181389,0.007,96266.0,96254.0,0.3608]
[1734959182085,0.007,96266.0,96260.0,0.052001]
[1734959182297,0.007,96266.0,96252.0,0.24836964]
[1734959182589,0.412806,96253.0,96252.0,0.24836964]
[1734959183292,0.412806,96253.0,96244.0,0.3094756]
[1734959183293,0.05201,96245.0,96244.0,0.3094756]
[1734959183487,0.052014,96238.0,96237.0,0.00144]
[1734959183783,0.052015,96236.0,96235.0,0.24833882]
[1734959183993,0.412815,96236.0,96235.0,0.24833882]
[1734959184584,0.052019,96230.0,96228.0,0.3094756]